{"text_format":"1","workbook":"xlsx","n_sheets":7,"sheets":["Раздел0","Раздел1","Раздел2","Раздел3","Раздел4","Раздел5","Указания"],"not_rendered":{"charts":0,"images":0,"macros":0,"external_links":0,"defined_names":267,"comments":0,"pivot_tables":0},"unopened":[],"bounds":{"document_bytes":16777216,"sheet_cells":100000,"rows_first":2000,"rows_last":500,"rows_between":2000,"halvings":0,"cell_chars":16384,"cell_head_chars":4096},"cells_cut":0,"cells_raw":0,"read":"whole","date_system":"1900"}

{"sheet":"Раздел0","index":0,"n_rows":33,"n_cols":13,"rows_kept":33,"cut":false,"hidden":false,"merged":[[34,0,34,17],[21,12,21,15],[31,11,31,16],[29,0,30,2],[32,0,32,2],[32,3,32,6],[27,0,27,5],[25,1,25,8],[31,7,31,10],[29,3,29,16],[32,7,32,10],[21,9,24,10],[31,3,31,6],[32,11,32,16],[25,9,25,10],[31,0,31,2],[1,3,1,13],[3,3,3,13],[5,2,5,14],[7,3,7,13],[9,4,9,12],[12,9,12,10],[14,12,14,15],[13,0,13,8],[18,12,18,15],[15,12,15,15],[18,1,18,8],[12,12,12,15],[21,1,21,8],[19,0,19,8],[19,9,19,10],[18,9,18,10],[16,12,16,15],[17,12,17,15],[16,0,16,8],[17,0,17,8],[13,9,17,10],[19,12,19,15],[24,0,24,8],[14,0,14,8],[15,0,15,8],[0,0,0,17],[1,17,33,17],[30,3,30,6],[30,7,30,10],[30,11,30,16],[27,6,27,16],[28,3,28,16],[28,0,28,2],[10,4,10,12],[12,0,12,8],[20,9,20,10],[23,0,23,8],[20,1,20,8]]}
[]
[null,null,null,"ФЕДЕРАЛЬНОЕ СТАТИСТИЧЕСКОЕ НАБЛЮДЕНИЕ"]
[]
[null,null,null,"КОНФИДЕНЦИАЛЬНОСТЬ ГАРАНТИРУЕТСЯ ПОЛУЧАТЕЛЕМ ИНФОРМАЦИИ"]
[]
[null,null,"Нарушение порядка представления статистической информации, а равно представление недостоверной статистической информации влечет ответственность, установленную статьей 13.19 Кодекса Российской Федерации об административных правонарушениях \nот 30.12.2001 № 195-ФЗ, а также статьей 3 Закона Российской Федерации от 13.05.1992 № 2761-1 “Об ответственности за нарушение порядка представления государственной статистической отчетности”"]
[]
[null,null,null,"ВОЗМОЖНО ПРЕДОСТАВЛЕНИЕ В ЭЛЕКТРОННОМ ВИДЕ"]
[]
[null,null,null,null,"СВЕДЕНИЯ О РЕАЛИЗАЦИИ ВСЕРОССИЙСКОГО ФИЗКУЛЬТУРНО-СПОРТИВНОГО КОМПЛЕКСА\n\"ГОТОВ К ТРУДУ И ОБОРОНЕ\" (ГТО)"]
[null,null,null,null,"по состоянию на 31 декабря 2021 года"]
[]
["Предоставляют:",null,null,null,null,null,null,null,null,"Сроки предоставления",null,null,"Форма № 2-ГТО"]
["юридические лица, осуществляющие подготовку населения  к выполнению нормативов ",null,null,null,null,null,null,null,null,"15 января"]
["Всероссийского физкультурно-спортивного комплекса \"Готов к труду и обороне\" (ГТО), ",null,null,null,null,null,null,null,null,null,null,null,"Приказ Росстата:"]
["а также осуществляющие  оценку выполнения нормативов Всероссийского ",null,null,null,null,null,null,null,null,null,null,null,"Об утверждении формы"]
["физкультурно-спортивного комплекса \"Готов к труду и обороне\" (ГТО):",null,null,null,null,null,null,null,null,null,null,null,"от  17.08.2017 № 536"]
["    - районному (городскому) органу управления физической культурой и спортом;",null,null,null,null,null,null,null,null,null,null,null,"О внесении изменений (при наличии)"]
[null,null,null,null,null,null,null,null,null,null,null,null,"от  __________ № ___"]
["районные (городские) органы управления физической культурой и спортом:",null,null,null,null,null,null,null,null,null,null,null,"от  __________ № ___"]
["-","органу исполнительной власти субъекта Российской Федерации в области",null,null,null,null,null,null,null,"25 января"]
[null,"физической культуры и спорта;",null,null,null,null,null,null,null,null,null,null,"Годовая"]
[]
["органы исполнительной власти субъектов Российской Федерации в области"]
["физической культуры и спорта:"]
["-","Министерству спорта Российской Федерации",null,null,null,null,null,null,null,"10 февраля"]
[]
["Наименование отчитывающейся организации",null,null,null,null,null,"МАУ \"Физкультурно-спортивный центр\" (Центр тестирования ГТО)"]
["Почтовый адрес",null,null,"175400, Новгородская область,г. Валдай, ул. Молодёжная, д.18."]
["Код\nформы\nпо ОКУД",null,null,"Код"]
[null,null,null,"отчитывающейся организации по ОКПО\n(для территориально обособленного подразделения – идентификационный номер)"]
[1,null,null,2,null,null,null,3,null,null,null,4]
["0609406",null,null,"00083888"]

{"sheet":"Раздел1","index":1,"n_rows":17,"n_cols":12,"rows_kept":17,"cut":false,"hidden":false,"merged":[[3,7,4,7],[3,8,4,8],[3,9,3,10],[3,11,4,11],[0,0,0,11],[1,7,1,11],[2,3,2,5],[2,7,2,8],[2,9,2,11],[2,1,4,1],[2,0,4,0],[2,2,4,2],[3,3,4,3],[3,4,4,4],[3,5,4,5],[2,6,4,6]]}
["Раздел I. Центры тестирования (далее - ЦТ)"]
[null,null,null,null,null,null,null,"Код по ОКЕИ: единица – 642, человек – 792"]
["Центры тестирования","№  строки","Количество ЦТ","В том числе из общего числа ЦТ (из графы 3) наделены правом по оценке выполнения нормативов испытаний (тестов) комплекса ГТО:",null,null,"Из общего  числа ЦТ\n(из графы 3)\nв сельской местности","Штатная численность ЦТ (человек):",null,"Количество мест тестирования: "]
[null,null,null,"федеральным органом исполнительной власти в сфере физической культуры и спорта","органами государственной власти субъектов Российской Федерации","органами местного самоуправления",null,"всего","в сельской местности\n(из графы 8)","закреплено за ЦТ:",null,"в собствен-ности ЦТ\n(из графы 10)\n"]
[null,null,null,null,null,null,null,null,null,"всего","в сельской местности \n(из графы 10)"]
[1,2,3,4,5,6,7,8,9,10,11,12]
["Всего (сумма строк 02-11)","01",{"$f":"SUM(D7:F7)","v":1},{"$f":"SUM(D8:D17)","v":0},0,1,0,1,0,12,3,1]
["   в том числе  в структуре организаций:\nобщеобразовательных ","02",{"$f":"SUM(D8:F8)","v":0}," "]
["среднего профессионального образования","03",0," "]
["высшего профессионального образования","04",0]
["дополнительного образования ","05",0]
["осуществляющих спортивную подготовку","06",0]
["физкультурно-спортивных учреждений","07",1,null,null,1,null,1,null,12,3,1]
["некоммерческих  организаций","08",0]
["физкультурно-спортивных клубов и их объединений","09",0]
["созданных  в форме некоммерческих организаций",10,0]
["других",11,0]

{"sheet":"Раздел2","index":2,"n_rows":18,"n_cols":11,"rows_kept":18,"cut":false,"hidden":false,"merged":[[0,0,0,10],[1,8,1,10],[2,3,2,10],[2,0,4,0],[2,1,4,1],[2,2,4,2],[3,10,4,10],[3,3,3,9]]}
["Раздел II. Кадры"]
[null,null,null,null,null,null,null,null,"Код по ОКЕИ: человек - 792"]
["Кадры","№ строки","Всего\n(человек)","В том числе (из графы 3):"]
[null,null,null,"штатные работники (человек):",null,null,null,null,null,null,"другие\n(человек)"]
[null,null,null,"ЦТ\n(из графы 8 раздела I)","образовательных организаций","организаций дополнительного образования (спортивной подготовки)","физкультурно-спортивных учреждений","некоммерческих организаций","физкультурно-спортивных клубов","предприятий, организаций, учреждений"]
[1,2,3,4,5,6,7,8,9,10,11]
["Количество человек, привлеченных к мероприятиям по подготовке населения к выполнению нормативов комплекса ГТО",12,{"$f":"SUM(D7:K7)","v":18},1,9,null,7,null,null,null,1]
["в том числе:  \nв сельской местности",13,{"$f":"SUM(D8:K8)","v":0}]
["Количество человек, привлеченных к проведению мероприятий по оценке выполнения нормативов комплекса ГТО ",14,9,1,null,null,7,null,null,null,1]
["в том числе по оценке выполнения нормативов (судейству) – всего ",15,5,{"$f":"SUM(D11:D15)","v":1},{"$f":"SUM(E11:E15)","v":0},0,4,0,0,0,0]
["из них судьи по виду спорта:\nВсероссийской категории",16,0]
["1 категории",17,0]
["2 категории",18,5,1,null,null,4]
["3 категории",19,0]
["другие ",20,0]
["Из общего числа (из строки 15) – работники (судьи) женского пола",21,2,null,null,null,2]
["Из общего числа (из строки 14) - прошли в отчетном году повышение квалификации ",22,0]
["Из общего числа (из строки 14) - в сельской местности",23,0]

{"sheet":"Раздел3","index":3,"n_rows":20,"n_cols":15,"rows_kept":20,"cut":false,"hidden":false,"merged":[[0,0,0,14],[1,12,1,14],[2,0,3,0],[2,1,3,1],[2,2,3,2],[2,3,2,14]]}
["Раздел III. Организационная работа по выполнению нормативов испытаний (тестов) комплекса ГТО\n(информацию по данному разделу предоставляют Центры тестирования)"]
[null,null,null,null,null,null,null,null,null,null,null,null,"Код по ОКЕИ: единица – 642"]
["Мероприятия","№ строки","Всего","Ступени комплекса ГТО"]
[null,null,null,"I","II","III","IV","V","VI","VII","VIII","IX","X","XI","Объединенные"]
[1,2,3,4,5,6,7,8,9,10,11,12,13,14,15]
["Количество мероприятий, проведенных ЦТ по оценке выполнения нормативов комплекса ГТО\n(сумма строк 25-34):",24,{"$f":"SUM(D6:O6)","v":16},{"$f":"SUM(D7:D16)","v":0},{"$f":"SUM(E7:E16)","v":0},0,0,0,0,0,0,0,0,0,16]
["в том числе ЦТ организаций:\nобщеобразовательных  ",25,{"$f":"SUM(D7:O7)","v":0}]
["среднего профессионального образования",26,0]
["высшего профессионального образования",27,0]
["дополнительного образования ",28,0]
["осуществляющих спортивную подготовку",29,0]
["физкультурно-спортивных учреждений",30,16,null,null,null,null,null,null,null,null,null,null,null,16]
["некоммерческих ",31,0]
["физкультурно-спортивных клубов и их объединений",32,0]
["созданных в форме некоммерческих организаций",33,0]
["других",34,0]
["Из общего числа (из строки 24):\n- мероприятия муниципального уровня",35,1,null,null,null,null,null,null,null,null,null,null,null,1]
["- мероприятия на уровне субъекта   Российской Федерации",36,0]
["- всероссийские (межрегиональные) мероприятия",37,0]
["Из общего числа  (из строки 24)\n- мероприятия проведены в сельской\n  местности",38,0]

{"sheet":"Раздел4","index":4,"n_rows":74,"n_cols":11,"rows_kept":74,"cut":false,"hidden":false,"merged":[[1,8,1,10],[0,0,0,10],[2,3,3,3],[2,2,3,2],[2,0,3,0],[2,1,3,1],[2,4,2,10]]}
["Раздел IV. Численность населения, принявшего участие в выполнении нормативов испытаний (тестов) комплекса ГТО\n(информацию по данному разделу предоставляют Центры тестирования)"]
[null,null,null,null,null,null,null,null,"Код по ОКЕИ: человек - 792"]
["Ступени","№ строки","Всего приняли участие в выполнении нормативов испытаний (тестов) комплекса ГТО (от 1 теста и более) (человек)","Всего выполнили\nнормативы испытаний (тестов) комплекса ГТО \n на знак отличия\n (из графы 3)  (человек)","в том числе (из графы 4) выполнили в Центрах тестирования:"]
[null,null,null,null,"образовательных организаций","организаций дополнительного образования (спортивной подготовки)","физкультурно-спортивных учреждений ","некоммерческих организаций","физкультурно-спортивных клубов и их объединений","созданных в форме некоммерческих организаций","других"]
[1,2,3,4,5,6,7,8,9,10,11]
["Всего\n(Сумма строк 44, 49, 54, 59, 64, 69, 74, 79, 84, 89, 94, 99)",39,{"$f":"SUM(C11,C17,C22,C27,C32,C37,C43,C48,C53,C58,C64,C69)","v":253},{"$f":"SUM(E6:K6)","v":85},{"$f":"SUM(E11,E17,E22,E27,E32,E37,E43,E48,E53,E58,E64,E69)","v":0},0,85,0,0,0,0]
["в том числе\n(из строки 39) участники женского пола (Сумма строк 48, 53,  58, 63, 68, 73, 78, 83, 88, 93, 98, 103)",40,{"$f":"SUM(C16,C21,C26,C31,C36,C42,C47,C52,C57,C63,C68,C73)","v":108},{"$f":"SUM(E7:K7)","v":39},{"$f":"SUM(E16,E21,E26,E31,E36,E42,E47,E52,E57,E63,E68,E73)","v":0},0,39,0,0,0,0]
["Золотой знак\n(сумма строк 45, 50, 55, 60, 65, 70, 75, 80, 85, 90, 95, 100)",41,"Х",{"$f":"SUM(E8:K8)","v":29},{"$f":"SUM(E12,E18,E23,E28,E33,E39,E44,E49,E54,E59,E65,E70)","v":0},{"$f":"SUM(F12,F18,F23,F28,F33,F39,F44,F49,F54,F59,F65,F70)","v":0},29,0,0,0,0]
["Серебряный знак\n(сумма строк 46, 51, 56, 61, 66, 71, 76, 81, 86, 91, 96, 101)",42,"Х",39,{"$f":"SUM(E14,E19,E24,E29,E34,E40,E45,E50,E55,E60,E66,E71)","v":0},{"$f":"SUM(F14,F19,F24,F29,F34,F40,F45,F50,F55,F60,F66,F71)","v":0},39,0,0,0,0]
["Бронзовый знак\n(сумма строк 47, 52, 57, 62, 67, 72, 77, 82, 87, 92, 97, 102)",43,"Х",17,{"$f":"SUM(E15,E20,E25,E30,E35,E41,E46,E51,E56,E61,E67,E72)","v":0},{"$f":"SUM(F15,F20,F25,F30,F35,F41,F46,F51,F56,F61,F67,F72)","v":0},17,0,0,0,0]
["в том числе (из строки 39):\nI ступень - всего",44,96,{"$f":"SUM(D12,D14,D15)","v":45},{"$f":"SUM(E12,E14,E15)","v":0},0,45,0,0,0,0]
["из них:\n- золотой знак",45,"Х",10,null,null,10]
[1,2,3,4,5,6,7,8,9,10,11]
["- серебряный знак",46,"Х",22,null,null,22]
["- бронзовый знак",47,"Х",13,null,null,13]
["Из числа I ступени\n(из строки 44) – участницы девочки",48,45,22,null,null,22]
["II ступень - всего",49,64,13,{"$f":"SUM(E18,E19,E20)","v":0},0,13,0,0,0,0]
["из них:\n- золотой знак",50,"Х",6,null,null,6]
["- серебряный знак",51,"Х",5,null,null,5]
["- бронзовый знак",52,"Х",2,null,null,2]
["Из числа II ступени\n(из строки 49) – участницы девочки",53,28,3,null,null,3]
["III ступень - всего",54,25,8,{"$f":"SUM(E23:E25)","v":0},0,8,0,0,0,0]
["из них:\n- золотой знак",55,"Х",1,null,null,1]
["- серебряный знак",56,"Х",7,null,null,7]
["- бронзовый знак",57,"Х",0]
["Из числа III ступени\n(из строки 54) – участницы девочки",58,15,6,null,null,6]
["IV ступень - всего",59,39,8,{"$f":"SUM(E28:E30)","v":0},0,8,0,0,0,0]
["из них:\n- золотой знак",60,"Х",3,null,null,3]
["- серебряный знак",61,"Х",4,null,null,4]
["- бронзовый знак",62,"Х",1,null,null,1]
["Из числа IV ступени\n(из строки 59) – участницы девушки",63,10,2,null,null,2]
["V ступень - всего",64,26,9,{"$f":"SUM(E33:E35)","v":0},0,9,0,0,0,0]
["из них:\n- золотой знак",65,"Х",7,null,null,7]
["- серебряный знак",66,"Х",1,null,null,1]
["- бронзовый знак",67,"Х",1,null,null,1]
["Из числа V ступени\n(из строки 64) – участницы девушки",68,9,6,null,null,6]
["VI ступень от 18 до 24 лет – всего",69,1,0,{"$f":"SUM(E39:E41)","v":0},0,0,0,0,0,0]
[1,2,3,4,5,6,7,8,9,10,11]
["из них:\n- золотой знак",70,"Х",0]
["- серебряный знак",71,"Х",0]
["- бронзовый знак",72,"Х",0]
["Из числа VI ступени \nот 18 до 24 лет\n(из строки 69) – участницы женщины",73,1,0]
["VI ступень от 25 до 29 лет – всего",74,null,0,{"$f":"SUM(E44:E46)","v":0},0,0,0,0,0,0]
["из них:\n- золотой знак",75,"Х",0]
["- серебряный знак",76,"Х",0]
["- бронзовый знак",77,"Х",0]
["Из числа VI ступени\nот 25 до 29 лет\n(из строки 74) – участницы женщины",78,null,0]
["VII ступень - всего",79,null,0,{"$f":"SUM(E49:E51)","v":0},0,0,0,0,0,0]
["из них:\n- золотой знак",80,"Х",0]
["- серебряный знак",81,"Х",0]
["- бронзовый знак",82,"Х",0]
["Из числа VII ступени\n(из строки 79) – участницы женщины",83,null,0]
["VIII ступень - всего",84,1,1,{"$f":"SUM(E54:E56)","v":0},{"$f":"SUM(F54:F56)","v":0},1,0,0,0,0]
["из них:\n- золотой знак",85,"Х",1,null,null,1]
["- серебряный знак",86,"Х",0]
["- бронзовый знак",87,"Х",0]
["Из числа VIII ступени\n(из строки 84) – участницы женщины",88,null,0]
["IX ступень - всего",89,1,1,{"$f":"SUM(E59:E61)","v":0},{"$f":"SUM(F59:F61)","v":0},1,0,0,0,0]
["из них:\n- золотой знак",90,"Х",1,null,null,1]
["- серебряный знак",91,"Х",0]
["- бронзовый знак",92,"Х",0]
[1,2,3,4,5,6,7,8,9,10,11]
["Из числа IX ступени\n(из строки 89) – участницы женщины",93,null,0]
["X ступень - всего",94,null,{"$f":"SUM(E64:K64)","v":0},{"$f":"SUM(E65:E67)","v":0},{"$f":"SUM(F65:F67)","v":0},0,0,0,0,{"$f":"SUM(K65:K67)","v":0}]
["из них:\n- золотой знак",95,"Х",{"$f":"SUM(E65:K65)","v":0}]
["- серебряный знак",96,"Х",{"$f":"SUM(E66:K66)","v":0}]
["- бронзовый знак",97,"Х",0]
["Из числа X ступени\n(из строки 94) – участницы женщины",98,null,0]
["XI ступень - всего",99,null,0,{"$f":"SUM(E70:E72)","v":0},{"$f":"SUM(F70:F72)","v":0},0,0,0,0,0]
["из них:\n- золотой знак",100,"Х",0]
["- серебряный знак",101,"Х",0]
["- бронзовый знак",102,"Х",0]
["Из числа XI ступени\n(из строки 99) – участницы женщины",103,null,{"$f":"SUM(E73:K73)","v":0}]
["Из общего числа\n(из строки 39) – в сельской местности",104,null,0]

{"sheet":"Раздел5","index":5,"n_rows":20,"n_cols":10,"rows_kept":20,"cut":false,"hidden":false,"merged":[[19,4,19,5],[18,8,18,9],[19,8,19,9],[16,8,16,9],[16,4,16,5],[17,8,17,9],[18,4,18,5],[17,4,17,5],[18,6,18,7],[19,6,19,7],[16,6,16,7],[17,6,17,7],[8,0,8,1],[9,0,9,1],[10,0,10,1],[16,1,16,3],[11,0,11,1],[12,0,12,1],[14,0,14,1],[13,0,13,1],[7,0,7,1],[0,0,0,9],[3,3,6,3],[4,8,6,8],[2,8,2,9],[3,2,6,2],[3,4,3,8],[4,4,4,7],[5,4,6,4],[5,5,5,6],[3,0,6,1],[5,7,6,7],[3,9,6,9]]}
["Раздел V.  Финансирование мероприятий Всероссийского физкультурно-спортивного комплекса «Готов к труду и обороне» (ГТО)"]
[]
[null,null,null,null,null,null,null,null,"Код по ОКЕИ: тысяча рублей - 384"]
["Виды расходов",null,"№ строки","Поступило средств на проведение мероприятий комплекса ГТО  - всего (графа 4 + графа 5 + графа  7+ графа 8)\n (тыс. руб.)","Источники финансирования мероприятий комплекса ГТО ",null,null,null,null,"Израсходовано - всего\n(тыс. руб.)"]
[null,null,null,null,"бюджетные средства ",null,null,null,"внебюджетные источники"]
[null,null,null,null,"федеральный бюджет","бюджет субъекта Российской Федерации:",null,"бюджет муниципального образования"]
[null,null,null,null,null,"всего ","в том числе межбюджетные трансферты\n (из графа 5) в бюджет муниципального образования"]
[1,null,2,3,4,5,6,7,8,9]
["Расходы – всего \n(сумма строк 106-111)",null,105,{"$f":"SUM(D10:D15)","v":12.885},{"$f":"SUM(E10:E15)","v":0},0,{"$f":"SUM(G10:G15)","v":0},{"$f":"SUM(H10:H15)","v":0},12.885,12.885]
["в том числе:\nна проведение спортивных мероприятий и физкультурных мероприятий",null,106,{"$f":"SUM(E10,F10,H10,I10)","v":2.1850000000000001},null,null,null,null,2.1850000000000001,2.1850000000000001]
["на приобретение спортивного оборудования и инвентаря",null,107,0]
["на пропаганду и популяризацию комплекса ГТО",null,108,0]
["на подготовку и обучение сотрудников",null,109,0]
["на заработную плату",null,110,10.7,null,null,null,null,10.7,10.7]
["прочие",null,111,0]
[]
[null,"Должностное лицо, ответственное за предоставление статистической информации (лицо, уполномоченное предоставлять статистическую информацию от имени юридического лица)",null,null,"директор МАУ \"Физкультурно-спортивный центр\"",null,"Афанасьев И.В."]
[null,null,null,null,"(должность)",null,"(Ф.И.О.)",null,"(подпись)"]
[null,null,null,null,null,null,null,null,"«____» _________20__ год"]
[null,null,null,null,"(номер контактного телефона)",null,"(E-mail)",null,"(дата составления документа)"]

{"sheet":"Указания","index":6,"n_rows":89,"n_cols":1,"rows_kept":89,"cut":false,"hidden":false,"merged":[]}
["Указания по заполнению формы федерального статистического наблюдения"]
["Общие  положения"]
["Годовую форму федерального статистического наблюдения № 2-ГТО «Сведения о реализации Всероссийского физкультурно-спортивного комплекса «Готов к труду и обороне» (ГТО)» (далее – Форма) предоставляют:"]
["юридические лица - организации, осуществляющие подготовку населения к выполнению нормативов испытаний (тестов) государственных требований Всероссийского физкультурно-спортивного комплекса «Готов к труду и обороне» (ГТО) (образовательные организации общего, начального, среднего, высшего профессионального и дополнительного образования; организации, осуществляющие работу по программам спортивной подготовки; дома и дворцы молодежи и школьников; жилищно-коммунальные организации; парки культуры и отдыха; дома и дворцы культуры; предприятия, организации различных отраслей; спортивные сооружения; фитнес-клубы; спортивные клубы; некоммерческие (общественные) организации и объединения, работающие с различными категориями населения; физкультурно-спортивные общества и организации; спортивные федерации; центры тестирования; районные органы управления физической культурой и спортом; органы исполнительной власти субъектов Российской Федерации в области физической культуры и спорта и другие организации и объединения), а также организации, осуществляющие оценку выполнения нормативов испытаний (тестов) Всероссийского физкультурно-спортивного комплекса «Готов к труду и обороне» (ГТО) (центры тестирования  по выполнению нормативов испытаний (тестов) комплекса ГТО) независимо от их организационно-правовых форм и форм собственности – районному (городскому) органу управления физической культурой и спортом 15 января года, следующего за отчетным;"]
["районные (городские) органы управления физической культурой и спортом - органу исполнительной власти субъектов Российской Федерации в области физической культуры и спорта 25 января года, следующего за отчетным;"]
["органы исполнительной власти субъектов Российской Федерации в области физической культуры и спорта – Министерству спорта Российской Федерации 10 февраля года, следующего за отчетным."]
["Форма составляется за прошедший календарный год, по данным на конец года."]
["В адресной части Формы указывается полное наименование отчитывающейся организации в соответствии с учредительными документами, зарегистрированными в установленном порядке, а затем в скобках – краткое наименование."]
["По строке «Почтовый адрес» указывается наименование субъекта Российской Федерации, юридический адрес с почтовым индексом; если фактический адрес не совпадает с юридическим, то указывается фактическое местонахождение респондента (почтовый адрес)."]
["При наличии у юридического лица обособленных подразделений1 настоящая Форма заполняется как по каждому обособленному подразделению, так и по юридическому лицу без этих обособленных подразделений."]
["________________"]
["[1]Обособленное подразделение организации – любое территориально обособленное от нее подразделение, по месту нахождения которого оборудованы стационарные рабочие места. Признание обособленного подразделения организации таковым производится независимо от того, отражено или не отражено его создание в учредительных или иных организационно-распорядительных документах организации, и от полномочий, которыми наделяется указанное подразделение. При этом рабочее место считается стационарным, если оно создается на срок более одного месяца (п.2 ст. 11 Налогового кодекса Российской Федерации)."]
["Руководитель юридического лица назначает должностных лиц, уполномоченных предоставлять первичные статистические данные от имени юридического лица (в том числе в обособленных подразделениях)."]
["В кодовой части формы титульного листа проставляется код по Общероссийскому классификатору предприятий и организаций (ОКПО) или идентификационный номер (для территориально обособленного подразделения юридического лица) на основании Уведомления о присвоении кода ОКПО (идентификационного номера), размещенного на Интернет-портале Росстата: http://statreg.gks.ru. "]
["Дополнительная информация по данным, указанным в настоящей Форме, представляется в описательном отчете о внедрении комплекса ГТО по форме, рекомендованной федеральным органом исполнительной власти в сфере физической культуры и спорта."]
["Раздел I. Центры тестирования"]
["В разделе учитываются центры тестирования всех форм собственности, независимо от их организационно-правовой формы, которые созданы в установленном порядке, а также наделены правом по оценке выполнения нормативов испытаний (тестов) комплекса ГТО."]
["Органы управления физической культурой и спортом муниципальных образований, органы исполнительной власти субъектов Российской Федерации в области физической культуры и спорта отчитываются за все центры тестирования, находящиеся на территории данного образования."]
["Строка 01 равна сумме строк 02 -11 по всем графам."]
["Строки 02-09 (графы 3-12). Учитываются центры тестирования, которые созданы в установленном порядке и являются структурными подразделениями  соответствующих организаций."]
["Строка 10 (графы 3-12). Учитываются центры тестирования, созданные в форме некоммерческих организаций как самостоятельное юридическое лицо."]
["Строки 01-11 (графа 4). Учитываются центры тестирования, которые наделены правом по оценке выполнения нормативов комплекса ГТО федеральным органом исполнительной власти в сфере физической культуры и спорта (п. 3 статьи 31.2 Федерального закона от 04.12.2007 № 329-ФЗ «О физической культуре и спорте в Российской Федерации»)."]
["Строки 01-11 (графа 5). Учитываются центры тестирования, которые наделены правом по оценке выполнения нормативов комплекса ГТО органами государственной власти субъектов Российской Федерации (п. 3 статьи 31.2 Федерального закона от 04.12.2007"]
["№ 329-ФЗ «О физической культуре и спорте в Российской Федерации»)."]
["Строки 01-11 (графа 6). Учитываются центры тестирования, которые наделены правом по оценке выполнения нормативов комплекса ГТО органами местного самоуправления (п. 3 статьи 31.2 Федерального закона от 04.12.2007 № 329-ФЗ «О физической культуре и спорте в Российской Федерации»)."]
["Показатель графы 3 должен быть равен сумме показателей граф 4, 5, 6."]
["Строки 01-11 (графа 7). Из общего количества центров тестирования (из графы 3) учитывается количество центров тестирования, расположенных в сельской местности."]
["Строки 01-11 (графы 8-9). Учитываются работники, занимающие штатные должности в центрах тестирования."]
["Строки 01-11 (графа 10). Учитываются все места тестирования, закрепленные за центрами тестирования и предназначенные для оценки выполнения нормативов испытаний (тестов) комплекса ГТО (Место тестирования* – объект спорта, а также территории, специально подготовленные для проведения физкультурных мероприятий и спортивных мероприятий по подготовке населения к выполнению нормативов комплекса ГТО или по оценке выполнения нормативов комплекса ГТО по одному или нескольким испытаниям (тестам) в соответствующих ступенях комплекса ГТО). "]
["Строки 01-11 (графа 11). Учитываются места тестирования, закрепленные за центрами тестирования и предназначенные для оценки выполнения нормативов испытаний (тестов) комплекса ГТО, в сельской местности (из графы 10)."]
["Строки 01-11 (графа 12). Учитываются места тестирования, находящиеся в собственности центра тестирования или организации в структуре которой создан центр тестирования как структурное подразделение."]
["Строка 11 (графы 3-12). Учитывается число центров тестирования, созданных в структуре других организаций, не вошедших в предложенный перечень (из графы 1), по центрам тестирования в строках 02-10. При наличии показателя указанные данные необходимо раскрыть в описательном отчете."]
["Раздел II. Кадры"]
["В разделе учитываются работники, привлеченные к проведению мероприятий по подготовке населения к выполнению нормативов испытаний (тестов) комплекса ГТО, а также к проведению мероприятий по оценке выполнения нормативов испытаний (тестов) комплекса ГТО."]
["Мероприятия по подготовке населения к выполнению нормативов испытаний (тестов) комплекса ГТО*  - физкультурные мероприятия и спортивные мероприятия, направленные на физическую подготовку различных категорий населения к выполнению нормативов испытаний (тестов) комплекса ГТО. По итогам указанных мероприятий результаты не вносятся в электронную базу данных комплекса ГТО в информационно-телекоммуникационной сети «Интернет» (www.GTO.ru). Лица, принявшие участие в мероприятиях, знаками отличия комплекса ГТО не награждаются. Мероприятия могут проводиться в целях пропаганды и популяризации комплекса ГТО."]
["Мероприятия по оценке выполнения нормативов испытаний (тестов) комплекса ГТО* – физкультурные мероприятия и спортивные мероприятия, по итогам которых результаты непосредственного выполнения нормативов испытаний (тестов) комплекса ГТО вносятся в электронную базу данных в информационно-телекоммуникационной сети «Интернет» (www.GTO.ru). Лица, выполнившие нормативы испытаний (тестов) комплекса ГТО, в соответствии с приказами награждаются соответствующими знаками отличия комплекса ГТО (ч. 2 ст. 31.1 Федерального закона от 04.12.2007 № 329-ФЗ «О физической культуре и спорте в Российской Федерации»)."]
["Строки  12-23 (графа 3). Учитывается сумма показателей, указанных в графах 4-11."]
["Строка 12 (графа 4-10). Учитываются работники, занимающие штатные должности в соответствующих перечню организациях, учреждениях и проводящие с населением различных возрастных групп мероприятия по подготовке населения к выполнению нормативов испытаний (тестов) комплекса ГТО."]
["Строка 12 (графа 11). Учитываются работники, не состоящие в штате организаций (графы 4-10), проводящие мероприятия по подготовке населения к выполнению нормативов испытаний (тестов) комплекса ГТО, в том числе учитываются работники фитнес-клубов. При наличии показателя указанные данные необходимо раскрыть в описательном отчете."]
["Строка 13 (графы 3-11). Из общего количества работников (строка 12) указываются работники, проводящие с населением различных возрастных групп мероприятия по подготовке к выполнению нормативов испытаний (тестов) комплекса ГТО в сельской местности."]
["Строки 14-23. По данным строкам информацию предоставляют центры тестирования."]
["Строка 14 (графы 4-10). Учитываются работники, занимающие штатные должности в соответствующих организациях, учреждениях и принимающие участие в проведении мероприятий по оценке выполнения населением нормативов испытаний (тестов) комплекса ГТО."]
["Строка 14 (графа 11). Учитываются работники, не состоящие в штате организаций (графы 4-10), принимающие участие в проведении мероприятий по оценке выполнения населением нормативов испытаний (тестов) комплекса ГТО. При наличии показателя указанные данные необходимо раскрыть в описательном отчете."]
["Строки 15-20 (графы 4-11). Из общего количества работников, привлеченных к проведению мероприятий по оценке выполнения нормативов испытаний (тестов) (из строки 14), учитываются работники, привлеченные к  оценке выполнения нормативов испытаний (тестов) комплекса ГТО (судейству). В строке 20 учитываются работники, не вошедшие в строки 16, 17, 18, 19. Показатель строки 15 должен быть равен сумме показателей строк 16, 17, 18, 19, 20."]
["Строка 21 (графы 4-11). Из общего количества работников, привлеченных к оценке выполнения нормативов испытаний (тестов) (из строки 15), учитываются работники (судьи) женского пола."]
["Строка 22 (графы 4-11). Из общего количества работников, привлеченных к проведению мероприятий по оценке выполнения нормативов испытаний (тестов) комплекса ГТО населением (строка 14), учитываются работники, которые прошли в отчетном периоде повышение квалификации по программам дополнительного профессионального образования (не менее 16 часов) с получением соответствующего документа по различным направлениям подготовки (например, специалисты, осуществляющие государственную политику в сфере физической культуры, спорта, образования в части внедрения и реализации комплекса ГТО; руководители организаций, наделенных полномочиями регионального оператора по внедрению и реализации комплекса ГТО; руководители центров тестирования по выполнению нормативов испытаний (тестов) комплекса ГТО; специалисты, ответственные за работу с электронной базой данных комплекса ГТО; учителей физической культуры; работники образовательных организаций, медицинских учреждений и организаторов физкультурно-спортивной работы (в том числе волонтеры) для работы с населением по вопросам внедрения комплекса ГТО и другие)."]
["Информация по участию работников в мероприятиях в рамках непрерывного профессионального самообразования (например, семинары, мастер-классы, конференции, методические совещания и другое) раскрывается в описательном отчете."]
["Строка 23 (графы 4-11). Из общего количества работников (из строки 14) указываются работники, принимающие участие в проведении мероприятий по оценке выполнения населением нормативов испытаний (тестов) комплекса ГТО в сельской местности."]
[]
["Раздел III. Организационная работа по выполнению нормативов испытаний (тестов) комплекса ГТО"]
["В данном разделе учитываются мероприятия (см. раздел II. Кадры), проведенные в целях оценки выполнения нормативов испытаний (тестов) комплекса ГТО населением (далее – мероприятия). Информацию по данному разделу предоставляют центры тестирования."]
["Информация предоставляется в соответствии с календарными планами проведения физкультурных мероприятий и спортивных мероприятий муниципальных образований и субъектов Российской Федерации, графиками проведения тестирования, положениями о проведении мероприятий, а также иными документами, подтверждающими проведение мероприятия. "]
["Строка 24 (графа 3). Учитывается суммарный показатель мероприятий в соответствии со ступенями комплекса ГТО. Показатель строки 24 должен быть равен сумме строк 25-34 по всем графам раздела."]
["Строка 35 (графы 3-15). Учитываются мероприятия, организаторами которых являются органы местного самоуправления, или мероприятия, являющиеся муниципальным этапом всероссийского или регионального мероприятия."]
["Строка 36 (графы 3-15). Учитываются мероприятия, организаторами которых являются органы государственной власти субъекта Российской Федерации, или мероприятия, которые являются региональным этапом всероссийского мероприятия."]
["Строка 37 (графы 3-15). Учитываются мероприятия, проводимые на территории субъекта Российской Федерации и организаторами которых являются федеральные органы исполнительной власти, всероссийские общественные организации (всероссийские мероприятия - если в них принимают участие команды, представляющие не менее 25% субъектов Российской Федерации; межрегиональные мероприятия - если в них принимают участие команды, представляющие не менее 50% субъектов Российской Федерации, входящих в федеральный округ Российской Федерации). Информация по указанным мероприятиям раскрывается в описательном отчете."]
["Строки 24-38 (графа 15). Учитываются мероприятия, проводимые одновременно по нескольким ступеням (двум и более)."]
["Строка 38. Из общего количества мероприятий (из строки 24) учитывается количество мероприятий, проведенных в сельской местности. "]
["Показатели о проведении мероприятий по пропаганде и популяризации комплекса ГТО, подготовке населения к выполнению нормативов испытаний (тестов) комплекса ГТО, а также о других мероприятиях комплекса ГТО раскрываются в описательном отчете."]
[]
["Раздел IV.  Численность населения, принявшего участие в выполнении нормативов испытаний (тестов) комплекса ГТО"]
["В разделе учитываются лица, принявшие участие в выполнении нормативов испытаний (тестов) комплекса ГТО от одного испытания (теста) и более, а также лица, выполнившие нормативы испытаний (тестов) комплекса ГТО на соответствующий знак отличия. В данном разделе учитываются лица, информация по которым внесена в электронную базу данных комплекса ГТО в информационно-телекоммуникационной сети «Интернет» (www.GTO.ru). Информацию по данному разделу предоставляют центры тестирования."]
["Строка 39 (графа 3). Учитываются все лица, принявшие участие в выполнении нормативов испытаний (тестов) комплекса ГТО, как минимум одного испытания (теста) в соответствующих ступенях, независимо от того, выполнены ли требования нормативов комплекса ГТО. Учитывается суммарный показатель строк 44, 49, 54, 59, 64, 69, 74, 79, 84, 89, 94, 99."]
["Строка 40 (графа 3). Учитываются все лица женского пола, принявшие участие в выполнении нормативов испытаний (тестов) комплекса ГТО (из строки 39). В строке учитывается суммарный показатель строк 48, 53, 58, 63, 68, 73, 78, 83, 88, 93, 98, 103."]
["Строка 39 (графа 4). Учитывается общее количество лиц, выполнивших нормативы испытаний (тестов) комплекса ГТО на соответствующий  знак отличия комплекса ГТО. Учитывается суммарный показатель строк 44, 49, 54, 59, 64, 69, 74, 79, 84, 89, 94, 99. "]
["Строка 39 (графы 5-11). Из графы 4 выделяется количество лиц, выполнивших нормативы испытаний (тестов) комплекса ГТО на соответствующий знак отличия комплекса ГТО в Центрах тестирования:  образовательных организаций - графа 5, организаций дополнительного образования (спортивной подготовки) – графа 6, физкультурно-спортивных учреждений – графа 7, некоммерческих организаций – графа 8,  физкультурно-спортивных клубов и их объединений – графа 9, созданных в форме некоммерческих организаций – графа 10, других организаций – графа 11. Учитывается суммарный показатель строк 44, 49, 54, 59, 64, 69, 74, 79, 84, 89, 94, 99. Общее количество лиц в графе 4 должно быть равно суммарному показателю 5-11 граф."]
["Строка 40 (графа 4). Учитывается общее количество лиц женского пола, выполнивших нормативы испытаний (тестов) комплекса ГТО (из строки 39). В строке 40 учитывается суммарный показатель строк 48, 53, 58, 63, 68, 73, 78, 83, 88, 93, 98, 103. Общее количество лиц женского пола в графе 4 должно быть равно суммарному показателю 5-11 граф."]
["Строка 41 (графы 4-11). Учитываются лица, выполнившие нормативы испытаний (тестов) комплекса ГТО на золотой знак отличия. В строке  учитывается суммарный показатель строк 45, 50, 55, 60, 65, 70, 75, 80, 85, 90, 95, 100."]
["Строка 42 (графы 4-11). Учитываются лица, выполнившие нормативы испытаний (тестов) комплекса ГТО на серебряный знак отличия. В строке  учитывается суммарный показатель строк 46, 51, 56, 61, 66, 71, 76, 81, 86, 91, 96, 101."]
["Строка 43 (графы 4-11). Учитываются лица, выполнившие нормативы испытаний (тестов) комплекса ГТО на бронзовый знак отличия. В строке  учитывается суммарный показатель строк 47, 52, 57, 62, 67, 72, 77, 82, 87, 92, 97, 102."]
["Итоговый показатель строки 39 (графа 4) должен быть равен сумме строк 41-43 по всем графам раздела. Соответствующее требование распространяется на строки 44, 49, 54, 59, 64, 69, 74, 79, 84, 89, 94, 99."]
["Итоговый показатель строки 39 (графа 3) может быть равен или больше показателя строки 39 (графа 4) за счет численности лиц, не выполнивших нормативы испытаний (тестов) комплекса ГТО на соответствующий знак отличия. Соответствующее требование распространяется на строки 44, 49, 54, 59, 64, 69, 74, 79, 84, 89, 94, 99 в графе 3 по отношению к графе 4."]
["Строка 104 (графы 3-11). Из общей численности населения, принявшего участие в выполнении нормативов испытаний (тестов) комплекса ГТО (строка 39), учитываются лица, принявшие участие в сельской местности."]
["По VI ступени комплекса ГТО в данном разделе учет лиц, принявших участие в выполнении нормативов испытаний (тестов) комплекса ГТО и выполнивших нормативы испытаний (тестов) комплекса ГТО на соответствующий знак отличия, осуществляется по двум возрастным подгруппам: строки 69-73 – участники комплекса ГТО от 18 до 24 лет; строки 74-78 – участники комплекса ГТО от 25 до 29 лет."]
[]
[]
[]
["Раздел V.  Финансирование мероприятий Всероссийского физкультурно-спортивного комплекса «Готов к труду и обороне» (ГТО)"]
[]
["В разделе учитываются финансовые средства, направленные на организацию и проведение мероприятий комплекса ГТО из бюджетов всех уровней, а также из внебюджетных источников."]
["Графы 3-8. Отражается объем средств, поступивших на проведение мероприятий комплекса ГТО: в графе 3 – общий объем  средств (гр.4+гр.5+гр.7+гр.8); из общего объема - распределение по источникам финансирования: федеральный бюджет (графа 4), бюджет субъекта Российской Федерации (графа 5), в том числе межбюджетные трансферты (графа 6), бюджет муниципального образования (графа 7), внебюджетные источники (графа 8). "]
["Строка 105 (графа 3). Показатель строки 105 должен быть равен сумме показателей строк 106-111. Показатель графы 3 должен быть равен сумме граф 4, 5, 7 и 8. "]
["В бюджете муниципального образования (графа 7) финансовые средства субъекта Российской Федерации (графа 6) не учитываются."]
["Графа 8. Учитываются средства, полученные из внебюджетных источников (например, средства спонсоров, инвесторов и другое) в течение отчетного года на мероприятия комплекса ГТО."]
["Графа 9. Учитывается сумма средств, фактически израсходованных на мероприятия комплекса ГТО в течение отчетного года. "]
[]
[]
["________________"]
["*Значение понятия приведено исключительно в целях заполнения настоящей Формы."]